bitfinex-derivatives/quotes_BTCF0:USTF0_20241221
["timestamp","ask_amount","ask_price","bid_price","bid_amount"]
[1734811411693,0.055421,97279.0,97265.0,0.3608]
[1734811411898,0.055421,97279.0,97273.0,0.051424]
[1734811412202,0.004,97279.0,97277.0,0.3608]
[1734811412898,0.001,97279.0,97278.0,0.051422]
[1734811413287,0.3608,97291.0,97277.0,0.3608]
[1734811413488,0.3608,97291.0,97279.0,0.051421]
[1734811413894,0.01054725,97293.0,97279.0,0.051421]
[1734811414096,0.051417,97287.0,97279.0,0.051421]
[1734811414304,0.051418,97285.0,97279.0,0.051421]
[1734811414694,0.051418,97285.0,97277.0,0.3608]
[1734811414895,0.051418,97285.0,97280.0,0.05142]
[1734811415091,0.051414,97292.0,97277.0,0.3608]
[1734811415297,0.013,97293.0,97285.0,0.3608]
[1734811415498,0.013,97293.0,97292.0,0.051414]
[1734811415801,0.004,97293.0,97292.0,0.051414]
[1734811416995,0.051411,97298.0,97292.0,0.051414]
[1734811417192,0.009,97293.0,97292.0,0.051414]
[1734811417393,0.009,97293.0,97285.0,0.412218]
[1734811417592,0.060414,97293.0,97286.0,0.051417]
[1734811417805,0.064414,97293.0,97286.0,0.051417]
[1734811418004,0.064414,97293.0,97285.0,0.3608]
[1734811418206,0.064414,97293.0,97289.0,0.051416]
[1734811418599,0.051416,97289.0,97285.0,0.3608]
[1734811418804,0.051417,97286.0,97285.0,0.3608]
[1734811420310,0.054417,97286.0,97285.0,0.3608]
[1734811421011,0.060417,97286.0,97285.0,0.3608]
[1734811421920,0.051419,97283.0,97277.0,0.3608]
[1734811422099,0.0529,97282.0,97277.0,0.3608]
[1734811422304,0.051422,97278.0,97277.0,0.3608]
[1734811423213,0.002,97283.0,97281.0,0.05142]
[1734811423413,0.007,97283.0,97281.0,0.05142]
[1734811423809,0.051414,97294.0,97278.0,0.0562]
[1734811424009,0.051414,97294.0,97292.0,0.051414]
[1734811425007,0.060414,97294.0,97292.0,0.051414]
[1734811425215,0.060414,97294.0,97286.0,0.102917]
[1734811426018,0.060414,97294.0,97288.0,0.051416]
[1734811426218,0.013,97294.0,97288.0,0.051416]
[1734811426421,0.051415,97292.0,97288.0,0.051416]
[1734811427011,0.051415,97291.0,97288.0,0.051416]
[1734811427315,0.051417,97287.0,97285.0,0.3608]
[1734811428219,0.008,97291.0,97285.0,0.3608]
[1734811428615,0.004,97292.0,97285.0,0.3608]
[1734811428809,0.004,97292.0,97291.0,0.051415]
[1734811429711,0.004,97292.0,97286.0,0.0563]
[1734811429712,0.003,97291.0,97290.0,0.051415]
[1734811430520,0.011,97291.0,97290.0,0.051415]
[1734811431419,0.008,97291.0,97287.0,0.051417]
[1734811431621,0.008,97291.0,97286.0,0.06655787]
[1734811432525,0.008,97291.0,97290.0,0.051415]
[1734811432710,0.011,97291.0,97288.0,0.24533733]
[1734811433111,0.051416,97289.0,97288.0,0.24533733]
[1734811433619,0.06160883,97289.0,97288.0,0.24533733]
[1734811433815,0.06160883,97289.0,97288.0,0.29675333]
[1734811434117,0.01019283,97289.0,97288.0,0.051416]
[1734811434626,0.01819283,97289.0,97288.0,0.051416]
[1734811435428,0.008,97289.0,97288.0,0.051416]
[1734811435613,0.008,97289.0,97288.0,0.102316]
[1734811435814,0.02116851,97289.0,97288.0,0.102316]
[1734811436413,0.011,97289.0,97288.0,0.102316]
[1734811437626,0.15381755,97304.0,97303.0,0.051409]
[1734811437820,0.15381755,97304.0,97303.0,0.412209]
[1734811438121,0.18426493,97310.0,97303.0,0.52069341]
[1734811438322,0.15395085,97313.0,97312.0,0.051404]
[1734811438521,0.15395085,97313.0,97312.0,0.412204]
[1734811438724,0.15395085,97313.0,97312.0,0.52723268]
[1734811438913,0.15395085,97313.0,97312.0,0.5374424]
[1734811439619,0.15695085,97313.0,97312.0,0.5374424]
[1734811439824,0.003,97313.0,97312.0,0.84435076]
[1734811440529,0.01,97313.0,97312.0,0.84535076]
[1734811440919,0.01029835,97348.0,97312.0,0.84535076]
[1734811441128,0.18426493,97350.0,97342.0,0.3608]
[1734811441320,0.00052001,97348.0,97342.0,0.3608]
[1734811441516,0.051382,97353.0,97342.0,0.3608]
[1734811441924,0.01014989,97350.0,97342.0,0.3608]
[1734811442531,0.0635,97343.0,97342.0,0.3608]
[1734811442918,0.0725,97343.0,97342.0,0.3608]
[1734811443322,0.0635,97343.0,97342.0,0.3608]
[1734811443521,0.0725,97343.0,97342.0,0.3618]
[1734811444232,0.0685,97343.0,97342.0,0.3618]
[1734811445439,0.0675,97343.0,97342.0,0.413188]
[1734811445819,0.0665,97343.0,97342.0,0.413188]
[1734811446231,0.011,97343.0,97342.0,0.413188]
[1734811446427,0.011,97343.0,97342.0,0.52160353]
[1734811446929,0.011,97343.0,97342.0,0.53191401]
[1734811447318,0.1024,97365.0,97363.0,0.051377]
[1734811447527,0.0515,97365.0,97363.0,0.051377]
[1734811450118,0.0625,97365.0,97363.0,0.053377]
[1734811450528,0.011,97365.0,97363.0,0.053377]
[1734811451842,0.01,97365.0,97363.0,0.052377]
[1734811452329,0.005,97365.0,97363.0,0.051377]
[1734811452545,0.011,97365.0,97363.0,0.052377]
[1734811453024,0.011,97365.0,97364.0,0.1065]
[1734811453223,0.006,97365.0,97364.0,0.1065]
[1734811453422,0.009,97365.0,97364.0,0.1065]
[1734811453921,0.003,97365.0,97364.0,0.1065]
[1734811454122,0.003,97365.0,97364.0,0.157876]
[1734811454338,0.051363,97390.0,97364.0,0.27058037]
[1734811454526,0.051363,97390.0,97388.0,0.3608]
[1734811455131,0.0541,97393.0,97388.0,0.3608]
[1734811455132,0.051363,97389.0,97388.0,0.3608]
[1734811456135,0.051363,97389.0,97388.0,0.3618]
[1734811456327,0.051363,97389.0,97388.0,0.001]
[1734811456938,0.051366,97384.0,97376.0,0.3608]
[1734811457433,0.013,97389.0,97380.0,0.051367]
[1734811458036,0.051367,97383.0,97376.0,0.3608]
[1734811458238,0.051369,97377.0,97368.0,0.3608]
[1734811458537,0.051379,97360.0,97356.0,0.01050446]
[1734811458727,0.3608,97375.0,97356.0,0.3608]
[1734811458928,0.051373,97370.0,97356.0,0.3608]
[1734811459232,0.0554,97376.0,97365.0,0.3608]
[1734811459429,0.051371,97374.0,97368.0,0.051374]
[1734811459636,0.051371,97374.0,97365.0,0.3608]
[1734811459829,0.051371,97374.0,97369.0,0.051373]
[1734811461736,0.057371,97374.0,97369.0,0.052373]
[1734811462041,0.061371,97374.0,97369.0,0.052373]
[1734811462340,0.051373,97371.0,97369.0,0.001]
[1734811464633,0.01,97374.0,97372.0,0.051372]
[1734811464837,0.004,97374.0,97372.0,0.051372]
[1734811465242,0.051369,97378.0,97372.0,0.051372]
[1734811465443,0.00812336,97377.0,97372.0,0.051372]
[1734811465636,0.051369,97378.0,97369.0,0.001]
[1734811465637,0.00812336,97376.0,97369.0,0.001]
[1734811465837,0.051365,97385.0,97374.0,0.3608]
[1734811466037,0.051366,97383.0,97379.0,0.051368]
[1734811466243,0.051367,97381.0,97374.0,0.3608]
[1734811466441,0.006,97377.0,97374.0,0.412171]
[1734811466634,0.005,97376.0,97375.0,0.05137]
[1734811467245,0.01312336,97376.0,97375.0,0.05137]
[1734811467446,0.005,97376.0,97375.0,0.05137]
[1734811468440,0.005,97377.0,97375.0,0.05137]
[1734811468641,0.05137,97375.0,97365.0,0.3608]
[1734811468951,0.051378,97360.0,97359.0,0.15875276]
[1734811469247,0.051381,97356.0,97355.0,0.30690836]
[1734811469441,0.05952248,97356.0,97355.0,0.30690836]
[1734811470440,0.051381,97356.0,97355.0,0.30690836]
[1734811470842,0.051385,97348.0,97342.0,0.051388]
[1734811471051,0.051385,97348.0,97344.0,0.051387]
[1734811471652,0.3608,97355.0,97338.0,0.05139]
[1734811471950,0.051386,97345.0,97338.0,0.05139]
[1734811472340,0.051386,97345.0,97344.0,0.006]
[1734811472537,0.051382,97353.0,97344.0,0.006]
[1734811473054,0.005,97345.0,97336.0,0.37096991]
[1734811474052,0.005,97345.0,97343.0,0.051387]
[1734811474449,0.001,97345.0,97343.0,0.051387]
[1734811474644,0.006,97345.0,97343.0,0.051387]
[1734811474847,0.005,97345.0,97343.0,0.051387]
[1734811475045,0.051385,97349.0,97343.0,0.051387]
[1734811475244,0.005,97345.0,97343.0,0.051387]
[1734811475640,0.007,97345.0,97343.0,0.051387]
[1734811476250,0.051385,97349.0,97343.0,0.051387]
[1734811476251,0.057385,97349.0,97343.0,0.051387]
[1734811476453,0.002,97345.0,97336.0,0.37152991]
[1734811476751,0.002,97345.0,97336.0,0.37096991]
[1734811477149,0.002,97345.0,97336.0,0.42236091]
[1734811477350,0.002,97345.0,97338.0,0.05139]
[1734811477551,0.002,97345.0,97336.0,0.37152991]
[1734811477763,0.051386,97347.0,97339.0,0.051389]
[1734811477952,0.005,97345.0,97339.0,0.051389]
[1734811478353,0.051386,97347.0,97339.0,0.051389]
[1734811478656,0.002,97345.0,97339.0,0.051389]
[1734811479556,0.003,97345.0,97339.0,0.051389]
[1734811480651,0.003,97345.0,97336.0,0.37152991]
[1734811480850,0.051389,97340.0,97336.0,0.37096991]
[1734811481551,0.0100894,97339.0,97336.0,0.37096991]
[1734811481753,0.0100894,97338.0,97336.0,0.37096991]
[1734811481950,0.051389,97340.0,97336.0,0.37096991]
[1734811481951,0.0100894,97337.0,97336.0,0.37096991]
[1734811483653,0.0100894,97337.0,97336.0,0.01016991]
[1734811483855,0.0100894,97337.0,97324.0,0.30690836]
[1734811484055,0.051397,97325.0,97324.0,0.30690836]
[1734811484256,0.0614864,97325.0,97324.0,0.30690836]
[1734811485060,0.051399,97322.0,97320.0,0.01049825]
[1734811485265,0.0100894,97321.0,97311.0,0.051404]
[1734811485563,0.0614894,97320.0,97311.0,0.051404]
[1734811485862,0.051402,97316.0,97307.0,0.1611]
[1734811486064,0.01014163,97315.0,97307.0,0.17149525]
[1734811486262,0.01014163,97314.0,97309.0,0.051405]
[1734811486454,0.051404,97312.0,97307.0,0.17149525]
[1734811486654,0.01014163,97311.0,97307.0,0.17149525]
[1734811486966,0.01014163,97310.0,97307.0,0.17149525]
[1734811487171,0.01014163,97311.0,97307.0,0.17149525]
[1734811487560,0.051406,97308.0,97307.0,0.17149525]
[1734811487866,0.051406,97308.0,97307.0,0.08089525]
[1734811488056,0.06153961,97308.0,97307.0,0.016]
[1734811488258,0.06153961,97308.0,97307.0,0.007]
[1734811488554,0.06253961,97308.0,97307.0,0.015]
[1734811490167,0.06253961,97308.0,97307.0,0.009]
[1734811490168,0.052406,97308.0,97307.0,0.009]
[1734811490357,0.001,97308.0,97303.0,0.3608]
[1734811490555,0.002,97308.0,97303.0,0.3608]
[1734811490767,0.051408,97305.0,97303.0,0.3608]
[1734811492361,0.052408,97305.0,97303.0,0.3608]
[1734811495366,0.05141,97301.0,97300.0,0.4155]
[1734811495765,0.05141,97301.0,97300.0,0.0547]
[1734811495962,0.05141,97301.0,97300.0,0.4155]
[1734811496665,0.05141,97301.0,97300.0,0.0557]
[1734811496864,0.05141,97301.0,97300.0,0.4165]
[1734811497174,0.05141,97301.0,97300.0,0.4185]
[1734811497364,0.16252734,97310.0,97300.0,0.4185]
[1734811497559,0.051406,97308.0,97300.0,0.4185]
[1734811497778,0.16252734,97310.0,97300.0,0.4185]
[1734811497969,0.051408,97304.0,97300.0,0.4185]
[1734811498770,0.051409,97302.0,97300.0,0.4185]
[1734811498959,0.051409,97302.0,97300.0,0.4175]
[1734811499871,0.051409,97302.0,97300.0,0.4165]
[1734811500265,0.01012609,97306.0,97300.0,0.46791]
[1734811500567,0.3608,97322.0,97300.0,0.46791]
[1734811500568,0.01012609,97307.0,97300.0,0.4185]
[1734811500772,0.01012609,97320.0,97300.0,0.7185]
[1734811500973,0.03723332,97327.0,97326.0,0.051396]
[1734811501174,0.1331418,97332.0,97331.0,0.051394]
[1734811501364,0.18426493,97338.0,97337.0,0.051391]
[1734811501365,0.15812766,97338.0,97337.0,0.051391]
[1734811501761,0.15812766,97338.0,97337.0,0.16444689]
[1734811502071,0.07292766,97338.0,97337.0,0.051391]
[1734811502770,0.051378,97361.0,97337.0,0.17672599]
[1734811502975,0.051378,97361.0,97360.0,0.3608]
[1734811503270,0.1093,97363.0,97360.0,0.3608]
[1734811503470,0.051375,97368.0,97360.0,0.3608]
[1734811503771,0.1051,97379.0,97360.0,0.3608]
[1734811503772,0.0512,97379.0,97376.0,0.05137]
[1734811503974,0.051364,97388.0,97374.0,0.3608]
[1734811504270,0.051366,97384.0,97383.0,0.3608]
[1734811505681,0.051369,97379.0,97374.0,0.3618]
[1734811505866,0.051369,97379.0,97374.0,0.3628]
[1734811506063,0.051364,97387.0,97374.0,0.3628]
[1734811506269,0.05137,97377.0,97374.0,0.002]
[1734811506475,0.05137,97376.0,97374.0,0.002]
[1734811506677,0.051372,97372.0,97363.0,0.3608]
[1734811506978,0.01,97384.0,97363.0,0.3608]
[1734811506979,0.051373,97371.0,97363.0,0.3608]
[1734811507177,0.3608,97381.0,97363.0,0.3608]
[1734811507377,0.051373,97370.0,97363.0,0.3608]
[1734811507876,0.051373,97370.0,97363.0,0.3618]
[1734811508075,0.051376,97365.0,97363.0,0.001]
[1734811508571,0.051376,97365.0,97364.0,0.3608]
[1734811508772,0.004,97372.0,97363.0,0.3618]
[1734811509078,0.0531,97393.0,97392.0,0.051362]
[1734811509372,0.0531,97393.0,97392.0,0.3608]
[1734811510176,0.108461,97393.0,97392.0,0.3618]
[1734811510873,0.114461,97393.0,97392.0,0.001]
[1734811512573,0.0631,97393.0,97373.0,0.3608]
[1734811512770,0.051366,97385.0,97373.0,0.3608]
[1734811513184,0.3608,97391.0,97373.0,0.3608]
[1734811513369,0.051368,97381.0,97375.0,0.05137]
[1734811513576,0.0521,97380.0,97375.0,0.05137]
[1734811513777,0.0521,97380.0,97373.0,0.001]
[1734811513983,0.051371,97374.0,97373.0,0.001]
[1734811515174,0.0521,97380.0,97373.0,0.3618]
[1734811515376,0.051364,97388.0,97373.0,0.3618]
[1734811515572,0.004,97381.0,97380.0,0.051368]
[1734811516281,0.0521,97390.0,97380.0,0.051368]
[1734811516582,0.002,97388.0,97383.0,0.051366]
[1734811516983,0.002,97388.0,97384.0,0.051365]
[1734811517682,0.0521,97390.0,97384.0,0.051365]
[1734811518477,0.0521,97390.0,97386.0,0.051364]
[1734811518878,0.103463,97390.0,97382.0,0.72232]
[1734811519083,0.0531,97393.0,97385.0,0.051365]
[1734811519382,0.3342374,97400.0,97382.0,0.7216]
[1734811519383,0.006,97388.0,97386.0,0.16608602]
[1734811519675,0.005,97388.0,97387.0,0.3608]
[1734811519876,0.001,97390.0,97388.0,0.051364]
[1734811520080,0.004,97390.0,97388.0,0.105864]
[1734811520290,0.004,97390.0,97389.0,0.11472102]
[1734811520682,0.1,97400.0,97388.0,0.105864]
[1734811520873,0.1,97400.0,97399.0,0.412158]
[1734811523077,0.101,97400.0,97399.0,0.413158]
[1734811523279,0.104,97400.0,97399.0,0.413158]
[1734811523476,0.103,97400.0,97399.0,0.412158]
[1734811523675,0.104,97400.0,97399.0,0.3608]
[1734811523986,0.051361,97393.0,97387.0,0.3608]
[1734811524178,0.103,97400.0,97387.0,0.3608]
[1734811524376,0.103,97400.0,97395.0,0.3608]
[1734811524581,0.051359,97397.0,97395.0,0.3608]
[1734811525085,0.103,97400.0,97391.0,0.051362]
[1734811525285,0.001,97393.0,97391.0,0.051362]
[1734811525883,0.001,97397.0,97391.0,0.051362]
[1734811526474,0.05136,97396.0,97391.0,0.051362]
[1734811526889,0.001,97393.0,97391.0,0.051362]
[1734811527291,0.001,97393.0,97385.0,0.3608]
[1734811527488,0.051363,97390.0,97385.0,0.3608]
[1734811528083,0.054,97392.0,97385.0,0.3608]
[1734811528287,0.054,97392.0,97390.0,0.051362]
[1734811529382,0.055,97392.0,97390.0,0.051362]
[1734811529579,0.056,97392.0,97390.0,0.051362]
[1734811529778,0.002,97392.0,97390.0,0.051362]
[1734811531582,0.001,97392.0,97389.0,0.18138108]
[1734811531785,0.001,97392.0,97391.0,0.051362]
[1734811532095,0.051362,97391.0,97389.0,0.18138108]
[1734811532593,0.051362,97391.0,97385.0,0.60463491]
[1734811532594,0.051363,97390.0,97386.0,0.30690836]
[1734811532991,0.04912113,97390.0,97386.0,0.30690836]
[1734811533695,0.04912113,97390.0,97385.0,0.3608]
[1734811533897,0.04912113,97390.0,97385.0,0.412165]
[1734811534894,0.1084,97391.0,97386.0,0.001]
[1734811534895,0.1074,97391.0,97386.0,0.001]
[1734811535093,0.0526,97405.0,97389.0,0.2433842]
[1734811535287,0.1087,97404.0,97389.0,0.2433842]
[1734811535690,0.051361,97394.0,97389.0,0.2433842]
[1734811536294,0.051361,97394.0,97389.0,0.2443842]
[1734811536493,0.051361,97394.0,97390.0,0.2433842]
[1734811537600,0.051362,97392.0,97390.0,0.2433842]
[1734811537801,0.051362,97392.0,97381.0,0.30690836]
[1734811537802,0.051366,97384.0,97383.0,0.30690836]
[1734811538101,0.051366,97384.0,97374.0,0.36783281]
[1734811538102,0.05137,97375.0,97374.0,0.36783281]
[1734811538299,0.41217,97375.0,97374.0,0.36783281]
[1734811539097,0.41217,97375.0,97362.0,0.36156]
[1734811539297,0.0577,97374.0,97362.0,0.3608]
[1734811539494,0.051375,97367.0,97362.0,0.3608]
[1734811540297,0.3608,97366.0,97357.0,0.18280355]
[1734811540492,0.412179,97358.0,97357.0,0.18280355]
[1734811541602,0.36091205,97358.0,97343.0,0.3608]
[1734811541795,0.051384,97350.0,97343.0,0.412187]
[1734811541996,0.00011205,97358.0,97343.0,0.3608]
[1734811542208,0.00011205,97358.0,97357.0,0.41518]
[1734811542499,0.00011205,97358.0,97357.0,0.41618]
[1734811542699,0.00011205,97358.0,97357.0,0.5272352]
[1734811542893,0.15345393,97366.0,97365.0,0.051376]
[1734811543104,0.09204775,97379.0,97375.0,0.05137]
[1734811543297,0.09204775,97379.0,97377.0,0.412169]
[1734811544505,0.051367,97382.0,97377.0,0.412169]
[1734811545009,0.051367,97382.0,97377.0,0.3628]
[1734811545206,0.051367,97382.0,97378.0,0.051368]
[1734811546310,0.051367,97382.0,97379.0,0.051368]
[1734811547214,0.051363,97389.0,97381.0,0.051367]
[1734811547409,0.051363,97389.0,97387.0,0.3608]
[1734811548599,0.054363,97389.0,97387.0,0.3608]
[1734811551611,0.051363,97389.0,97387.0,0.3608]
[1734811551808,0.054363,97389.0,97387.0,0.3608]
[1734811554217,0.14641075,97389.0,97387.0,0.3608]
[1734811555409,0.09504775,97389.0,97387.0,0.3608]
[1734811555613,0.09504775,97389.0,97388.0,0.051364]
[1734811555814,0.09504775,97389.0,97388.0,0.105464]
[1734811556314,0.09504775,97389.0,97388.0,0.27860323]
[1734811556615,0.09504775,97389.0,97388.0,0.33660323]
[1734811557114,0.003,97389.0,97388.0,0.33660323]
[1734811557320,0.1,97400.0,97394.0,0.05136]
[1734811557616,0.1,97400.0,97399.0,0.3608]
[1734811558203,0.10202801,97400.0,97399.0,0.3608]
[1734811558911,0.051363,97389.0,97388.0,0.0541]
[1734811559111,0.051363,97389.0,97387.0,0.3608]
[1734811559418,0.00202801,97388.0,97387.0,0.3608]
[1734811560619,0.00202801,97388.0,97379.0,0.3608]
[1734811560918,0.051368,97380.0,97379.0,0.3608]
[1734811561314,0.05339601,97380.0,97379.0,0.3608]
[1734811561518,0.05339601,97380.0,97367.0,0.0549]
[1734811561715,0.01015474,97379.0,97378.0,0.051369]
[1734811562436,0.01218275,97379.0,97378.0,0.051369]
[1734811562624,0.01218272,97379.0,97378.0,0.051369]
[1734811564013,0.01015471,97379.0,97378.0,0.16519175]
[1734811564219,0.09210228,97380.0,97378.0,0.16519175]
[1734811564416,0.09210228,97383.0,97382.0,0.051367]
[1734811564724,0.09210228,97383.0,97382.0,0.412167]
[1734811564915,0.09210228,97383.0,97382.0,0.52592576]
[1734811565729,0.01010062,97395.0,97393.0,0.051361]
[1734811566022,0.19210228,97400.0,97394.0,0.3608]
[1734811566023,0.01010062,97399.0,97394.0,0.3608]
[1734811566227,0.01010062,97398.0,97394.0,0.3608]
[1734811566412,0.01010062,97397.0,97394.0,0.3608]
[1734811566726,0.06146062,97396.0,97394.0,0.3608]
[1734811567021,0.01110062,97395.0,97394.0,0.3608]
[1734811568124,0.01010062,97395.0,97394.0,0.3608]
[1734811569619,0.001,97395.0,97394.0,0.41216]
[1734811570331,0.01010062,97397.0,97394.0,0.41216]
[1734811570621,0.001,97395.0,97394.0,0.41216]
[1734811570819,0.01110062,97395.0,97394.0,0.41216]
[1734811571021,0.01106746,97395.0,97394.0,0.41216]
[1734811571537,0.01106746,97395.0,97394.0,0.3608]
[1734811571723,0.051366,97383.0,97382.0,0.3608]
[1734811572033,0.06143346,97383.0,97382.0,0.3608]
[1734811572917,0.06148416,97383.0,97382.0,0.3608]
[1734811573117,0.051369,97379.0,97375.0,0.23417355]
[1734811573319,0.01011816,97378.0,97375.0,0.23417355]
[1734811573520,0.01011816,97377.0,97375.0,0.23417355]
[1734811573714,0.01011816,97376.0,97375.0,0.23417355]
[1734811574332,0.01011816,97376.0,97375.0,0.05137]
[1734811574929,0.12280305,97379.0,97375.0,0.10782851]
[1734811575123,0.18295621,97394.0,97393.0,0.051361]
[1734811575318,0.18295621,97394.0,97393.0,0.412161]
[1734811575523,0.0537,97426.0,97393.0,0.46862851]
[1734811575717,0.0537,97426.0,97422.0,0.3608]
[1734811575925,0.051344,97425.0,97421.0,0.051346]
[1734811576119,0.13732903,97427.0,97426.0,0.051344]
[1734811576731,0.0004,97433.0,97421.0,0.3608]
[1734811577033,0.0004,97433.0,97432.0,0.41214]
[1734811578032,0.0064,97433.0,97432.0,0.41214]
[1734811578525,0.0064,97433.0,97432.0,0.41314]
[1734811578728,0.0064,97433.0,97432.0,0.52207883]
[1734811578928,0.09204358,97441.0,97440.0,0.051336]
[1734811579134,0.09204358,97441.0,97440.0,0.412136]
[1734811579333,0.09204358,97441.0,97440.0,0.52107483]
[1734811580431,0.005,97441.0,97440.0,0.52107483]
[1734811580735,0.005,97441.0,97440.0,0.52207483]
[1734811581431,0.09204358,97461.0,97456.0,0.051327]
[1734811581628,0.09204358,97461.0,97460.0,0.3608]
[1734811581829,0.0535,97466.0,97460.0,0.3608]
[1734811582632,0.3608,97461.0,97442.0,0.3608]
[1734811582930,0.051327,97458.0,97442.0,0.412135]
[1734811583134,0.051327,97458.0,97443.0,0.051334]
[1734811583335,0.051327,97458.0,97442.0,0.3608]
[1734811583639,0.051327,97458.0,97444.0,0.051334]
[1734811583933,0.051327,97458.0,97446.0,0.051333]
[1734811584136,0.051327,97458.0,97442.0,0.3618]
[1734811584330,0.051327,97458.0,97448.0,0.051332]
[1734811584632,0.0535,97466.0,97454.0,0.3608]
[1734811584831,0.051324,97463.0,97454.0,0.3608]
[1734811585032,0.0535,97466.0,97458.0,0.051327]
[1734811586232,0.0535,97466.0,97465.0,0.3608]
[1734811586835,0.0535,97466.0,97460.0,0.051325]
[1734811587238,0.0535,97466.0,97462.0,0.051325]
[1734811587437,0.051319,97474.0,97462.0,0.051325]
[1734811587734,0.1161,97479.0,97469.0,0.3608]
[1734811587964,0.0576,97479.0,97474.0,0.051318]
[1734811588237,0.0576,97479.0,97477.0,0.3608]
[1734811588538,0.09204358,97485.0,97483.0,0.051314]
[1734811589041,0.001408,97484.0,97483.0,0.051314]
[1734811589728,0.001408,97484.0,97483.0,0.052314]
[1734811590734,0.1,97500.0,97498.0,0.051306]
[1734811590930,0.1,97500.0,97499.0,0.3608]
[1734811591629,0.1,97500.0,97487.0,0.051311]
[1734811591826,0.051307,97496.0,97483.0,0.001]
[1734811592036,0.051308,97494.0,97483.0,0.001]
[1734811592537,0.1,97500.0,97481.0,0.3608]
[1734811592538,0.3608,97498.0,97481.0,0.3608]
[1734811592740,0.051311,97489.0,97481.0,0.3608]
[1734811593229,0.0572,97488.0,97483.0,0.001]
[1734811593633,0.0572,97488.0,97481.0,0.3608]
[1734811593835,0.0572,97488.0,97481.0,0.3618]
[1734811594336,0.051312,97486.0,97483.0,0.001]
[1734811595138,0.0545,97487.0,97483.0,0.001]
[1734811595139,0.051313,97484.0,97483.0,0.001]
[1734811595530,0.0545,97487.0,97483.0,0.001]
[1734811595737,0.0545,97487.0,97476.0,0.3608]
[1734811595938,0.0545,97487.0,97481.0,0.001]
[1734811596443,0.0545,97487.0,97476.0,0.3608]
[1734811596636,0.0545,97487.0,97483.0,0.051313]
[1734811597344,0.0545,97487.0,97476.0,0.3608]
[1734811599036,0.0545,97487.0,97482.0,0.051314]
[1734811599237,0.105812,97487.0,97476.0,0.3608]
[1734811599441,0.105812,97487.0,97477.0,0.051317]
[1734811599634,0.105812,97487.0,97476.0,0.3608]
[1734811599840,0.1134,97488.0,97476.0,0.3618]
[1734811600032,0.1134,97488.0,97478.0,0.051316]
[1734811600546,0.1134,97488.0,97476.0,0.3608]
[1734811600748,0.1134,97488.0,97480.0,0.051315]
[1734811601143,0.051311,97487.0,97480.0,0.051315]
[1734811602948,0.1134,97488.0,97476.0,0.3608]
[1734811602949,0.1134,97488.0,97482.0,0.051314]
[1734811603148,0.1134,97488.0,97486.0,0.051312]
[1734811604246,0.0084644,97487.0,97486.0,0.051312]
[1734811604943,0.0084644,97487.0,97476.0,0.3608]
[1734811605149,0.051313,97485.0,97478.0,0.051316]
[1734811605342,0.36927438,97484.0,97476.0,0.3608]
[1734811605550,0.051316,97479.0,97476.0,0.3608]
[1734811605854,0.00847438,97478.0,97476.0,0.3608]
[1734811606054,0.36132001,97484.0,97466.0,0.18280355]
[1734811606055,0.00847356,97477.0,97466.0,0.23412555]
[1734811606244,0.051318,97475.0,97466.0,0.23412555]
[1734811606549,0.06257356,97476.0,97466.0,0.19330015]
[1734811606550,0.00847356,97474.0,97466.0,0.19330015]
[1734811606742,0.0541,97476.0,97466.0,0.19330015]
[1734811606743,0.05132,97471.0,97466.0,0.18280355]
[1734811606939,0.00847356,97470.0,97466.0,0.18280355]
[1734811607139,0.00847356,97469.0,97466.0,0.18280355]
[1734811607340,0.00847356,97468.0,97467.0,0.051322]
[1734811608140,0.00847356,97468.0,97466.0,0.001]
[1734811608141,0.00847057,97468.0,97466.0,0.001]
[1734811608353,0.00847457,97467.0,97466.0,0.001]
[1734811608553,0.00847457,97467.0,97466.0,0.052323]
[1734811609050,0.00847457,97467.0,97466.0,0.051323]
[1734811609552,0.00847457,97467.0,97466.0,0.053323]
[1734811609852,0.00847457,97467.0,97466.0,0.17141606]
[1734811610149,0.051313,97485.0,97479.0,0.051315]
[1734811610450,0.00848571,97484.0,97479.0,0.051315]
[1734811610756,0.051315,97481.0,97479.0,0.051315]
[1734811610947,0.00848571,97480.0,97479.0,0.051315]
[1734811612351,0.00848571,97480.0,97479.0,0.052315]
[1734811612745,0.00848571,97480.0,97479.0,0.051315]
[1734811614842,0.051316,97479.0,97477.0,0.18199526]
[1734811615041,0.00848571,97478.0,97477.0,0.18199526]
[1734811615963,0.00848571,97478.0,97476.0,0.051317]
[1734811616148,0.00848571,97477.0,97476.0,0.051317]
[1734811616758,0.00829122,97477.0,97476.0,0.051317]
[1734811617055,0.09216188,97487.0,97486.0,0.051312]
[1734811617259,0.09216188,97487.0,97486.0,0.412112]
[1734811618546,0.1,97500.0,97499.0,0.051305]
[1734811618760,0.1,97500.0,97499.0,0.412105]
[1734811619749,0.109,97500.0,97499.0,0.413105]
[1734811619951,0.109,97500.0,97499.0,0.42328903]
[1734811621659,0.109,97500.0,97499.0,0.3618]
[1734811621660,0.160305,97500.0,97499.0,0.3618]
[1734811621960,0.01176893,97509.0,97499.0,0.82895743]
[1734811622163,0.15288573,97521.0,97520.0,0.051294]
[1734811622351,0.13921438,97521.0,97520.0,0.412094]
[1734811622551,0.21497576,97538.0,97527.0,0.05129]
[1734811622753,0.21497576,97538.0,97527.0,0.41209]
[1734811623452,0.0558,97539.0,97527.0,0.41209]
[1734811623453,0.051287,97534.0,97527.0,0.41209]
[1734811624364,0.051287,97534.0,97527.0,0.3608]